bitfinex/quotes_ETHUSD_20241129
["timestamp","ask_amount","ask_price","bid_price","bid_amount"]
[1732874683910,0.26019805,3572.7,3572.1,1.112982]
[1732874684230,0.26019805,3572.7,3572.2,2.85500856]
[1732874684579,0.26019805,3572.7,3572.3,2.79931]
[1732874684783,0.26019805,3572.7,3572.3,2.85479063]
[1732874685614,0.26019805,3572.8,3572.3,2.85479063]
[1732874685783,0.26019805,3572.7,3572.3,2.85479063]
[1732874685986,0.26019805,3572.8,3572.3,3.55945419]
[1732874686212,3.21538305,3573.0,3572.3,3.55945419]
[1732874686213,3.05904805,3572.9,3572.4,2.79923]
[1732874686412,3.05911805,3572.8,3572.4,0.05511543]
[1732874686730,0.26019805,3572.7,3572.3,0.67672226]
[1732874686938,0.26019805,3572.6,3572.5,0.05506748]
[1732874687084,0.26019805,3572.7,3572.4,0.05511543]
[1732874687423,3.21543305,3573.0,3572.3,3.47597226]
[1732874687424,0.26019805,3572.6,3572.5,0.05506748]
[1732874687578,0.26019805,3572.8,3572.3,3.47597226]
[1732874687783,0.26019805,3572.7,3572.5,0.05508525]
[1732874687984,0.26019805,3572.6,3572.5,2.79916]
[1732874688279,0.26019805,3572.9,3572.6,0.05501953]
[1732874688480,0.26019805,3572.8,3572.5,3.48724925]
[1732874688734,3.21532305,3573.1,3572.7,0.05497159]
[1732874688958,3.05961151,3573.0,3572.8,0.05494141]
[1732874689155,0.26084151,3572.9,3572.4,2.79921]
[1732874689327,3.21538305,3573.0,3572.4,2.79921]
[1732874689328,0.26084151,3572.8,3572.4,3.434793]
[1732874689661,0.26084151,3572.7,3572.4,3.434793]
[1732874689858,0.26084151,3572.6,3572.4,3.434793]
[1732874690163,2.79885,3572.9,3572.4,3.434793]
[1732874690332,0.26083123,3572.8,3572.4,3.434793]
[1732874690670,0.26083123,3572.7,3572.4,3.434793]
[1732874690860,0.26083123,3572.6,3572.4,0.635583]
[1732874691034,0.26083123,3572.5,3572.4,0.635583]
[1732874691870,0.26083123,3572.5,3572.4,3.434813]
[1732874692889,3.21546305,3572.9,3572.4,3.434813]
[1732874693102,0.26101641,3572.8,3572.4,3.434813]
[1732874693300,0.26101641,3572.7,3572.4,3.434813]
[1732874693600,0.26101641,3572.6,3572.5,3.4225233]
[1732874693893,0.41661305,3573.0,3572.7,2.79899]
[1732874694057,0.67770325,3572.9,3572.7,2.79899]
[1732874694257,0.2610902,3572.8,3572.7,2.79899]
[1732874696721,0.2611274,3572.8,3572.7,2.79899]
[1732874699314,0.2611274,3572.8,3572.7,2.85386419]
[1732874699516,0.2611274,3572.8,3572.7,3.49691161]
[1732874700025,2.79857,3573.3,3572.7,3.49691161]
[1732874700244,0.67919481,3573.2,3572.7,3.49691161]
[1732874700443,0.67919481,3573.1,3572.7,3.49691161]
[1732874700743,0.67919481,3573.0,3572.7,3.49691161]
[1732874700896,0.67919481,3572.9,3572.8,0.70735216]
[1732874701341,0.67919481,3572.9,3572.8,0.7621784]
[1732874701535,0.67919481,3572.9,3572.8,3.5610984]
[1732874702222,1.02362877,3572.9,3572.8,0.7621784]
[1732874702425,3.82246877,3572.9,3572.8,0.05482624]
[1732874702639,4.24043481,3572.9,3572.8,0.05482624]
[1732874702840,2.79898,3572.8,3572.2,2.79939]
[1732874702999,0.67919481,3572.7,3572.2,2.79939]
[1732874703334,0.67919481,3572.7,3572.3,0.05493562]
[1732874703335,3.47832481,3572.6,3572.3,0.05493562]
[1732874703541,0.67919481,3572.5,3572.3,0.05493562]
[1732874703742,0.26122877,3572.4,3572.2,0.936289]
[1732874703957,0.26122877,3572.3,3572.2,3.735679]
[1732874705259,0.26122877,3572.3,3572.2,0.936289]
[1732874705627,4.24628253,3572.3,3571.6,2.7998]
[1732874705843,0.67962253,3572.2,3571.5,0.8258]
[1732874706153,0.67962253,3572.2,3571.1,0.7937]
[1732874706154,2.79979,3571.7,3571.1,0.7937]
[1732874706317,0.67962253,3571.6,3571.1,0.7937]
[1732874706518,0.26122877,3571.5,3571.1,0.7937]
[1732874706750,0.26122877,3571.4,3571.1,0.7937]
[1732874706915,0.26137921,3571.3,3571.1,0.7937]
[1732874707122,2.79971,3571.8,3571.2,0.639438]
[1732874707317,0.67933743,3571.7,3571.2,0.639438]
[1732874707518,0.67933743,3571.6,3571.2,0.639438]
[1732874707725,0.26128396,3571.5,3571.2,0.639438]
[1732874707922,4.00211347,3571.6,3570.7,2.80056]
[1732874707923,0.26128396,3571.4,3570.9,0.8064]
[1732874708147,0.26128396,3571.3,3570.9,0.8064]
[1732874708356,2.79995,3571.5,3570.9,0.8064]
[1732874708551,0.26119897,3571.4,3570.9,0.8064]
[1732874708757,0.26119897,3571.3,3570.9,0.8064]
[1732874709020,0.26119383,3571.2,3571.0,0.360688]
[1732874709246,2.79995,3571.5,3571.0,0.360688]
[1732874709575,0.26108513,3571.4,3571.0,0.360688]
[1732874709868,3.06118968,3571.3,3571.0,0.360688]
[1732874710074,0.26108968,3571.2,3570.6,6.61039]
[1732874710278,2.8001,3571.3,3570.6,6.61039]
[1732874710429,2.8004,3571.0,3570.2,2.80091]
[1732874710629,3.06144193,3570.9,3570.2,2.80091]
[1732874710931,0.26100924,3570.8,3570.3,0.56105046]
[1732874711133,2.80054,3570.8,3570.4,0.33619605]
[1732874711352,2.80054,3570.8,3569.9,0.8098]
[1732874711353,2.80071,3570.6,3569.9,0.8098]
[1732874711579,2.80071,3570.6,3569.9,3.61099]
[1732874711743,2.80073,3570.5,3569.9,3.61099]
[1732874712542,2.80073,3570.5,3570.0,3.0]
[1732874712988,2.80053,3570.8,3570.0,3.0]
[1732874713191,0.7712,3571.1,3570.1,1.21323678]
[1732874713192,3.06125248,3570.7,3570.1,1.21323678]
[1732874713343,2.80066,3570.6,3570.1,1.21323678]
[1732874713539,2.80066,3570.6,3570.1,0.661099]
[1732874714291,2.80066,3570.6,3570.2,0.05634863]
[1732874718495,0.8089,3570.5,3570.2,0.05634863]
[1732874718794,0.8089,3570.5,3570.0,2.80104]
[1732874719009,0.8089,3570.5,3570.1,0.69755615]
[1732874719593,2.80066,3570.6,3570.1,0.69755615]
[1732874722878,32.80066,3570.6,3570.1,0.69755615]
[1732874723078,30.0,3570.6,3569.9,0.8098]
[1732874723434,2.80104,3570.1,3569.7,0.7726]
[1732874723568,2.80104,3570.1,3568.5,2.948]
[1732874723569,2.80138,3569.7,3569.1,3.59152]
[1732874723885,2.80138,3569.7,3569.2,0.05512193]
[1732874724264,2.8012,3569.9,3569.2,0.05512193]
[1732874724458,2.8012,3569.9,3569.3,2.80159]
[1732874724664,2.8012,3569.9,3569.4,0.05502587]
[1732874724863,2.8012,3569.9,3569.3,2.80159]
[1732874725103,2.8012,3569.9,3569.4,0.05523933]
[1732874725462,2.8012,3569.9,3569.3,3.440901]
[1732874725668,2.8012,3569.9,3569.4,0.05507923]
[1732874725909,2.8012,3569.9,3569.3,3.440901]
[1732874726205,2.8012,3569.9,3569.4,0.05507923]
[1732874726410,0.7548,3570.2,3569.5,2.8015]
[1732874726631,2.80116,3570.0,3569.4,3.51031002]
[1732874727494,0.7548,3570.2,3569.4,0.70875002]
[1732874727685,2.80104,3570.1,3569.4,2.80153]
[1732874727882,2.80104,3570.1,3569.6,2.80143]
[1732874728087,0.7548,3570.2,3569.6,2.80143]
[1732874728402,2.80108,3570.1,3569.7,0.05532018]
[1732874728583,2.80108,3570.1,3569.5,2.80149]
[1732874728786,2.80108,3570.1,3569.6,0.05536821]
[1732874729484,0.7548,3570.2,3569.6,0.05536821]
[1732874729692,2.80085,3570.4,3569.8,0.8286]
[1732874729923,2.80085,3570.4,3569.8,3.62987]
[1732874730084,2.80085,3570.4,3569.9,0.05534684]
[1732874730416,0.8138,3570.5,3569.8,3.62987]
[1732874730586,2.80088,3570.3,3569.9,0.05534684]
[1732874730786,2.80088,3570.3,3569.8,3.62987]
[1732874731031,3.61458,3570.5,3569.9,2.85653684]
[1732874731232,3.61458,3570.5,3569.9,2.80119]
[1732874732021,0.26000359,3570.4,3570.0,2.80109]
[1732874732333,0.26000359,3570.5,3570.1,0.10804186]
[1732874732635,0.26000359,3570.5,3569.9,3.47287758]
[1732874732788,0.26000359,3570.5,3570.0,2.90898914]
[1732874734316,32.80065,3570.6,3570.0,2.90898914]
[1732874734317,0.26000359,3570.4,3570.0,2.90898914]
[1732874734626,0.26000359,3570.3,3570.0,2.90898914]
[1732874734947,32.80065,3570.6,3570.0,2.90898914]
[1732874734948,0.26000359,3570.5,3570.0,2.90898914]
[1732874735156,0.26000359,3570.4,3570.0,2.90898914]
[1732874735299,0.26000359,3570.3,3570.0,2.90898914]
[1732874735495,0.26000359,3570.2,3570.0,2.90898914]
[1732874735820,0.41718626,3570.5,3570.0,2.90898914]
[1732874736132,0.26074072,3570.4,3570.0,2.90898914]
[1732874736438,0.26074072,3570.3,3570.0,2.90898914]
[1732874736641,0.26074072,3570.2,3570.0,2.80109]
[1732874736798,0.26074072,3570.1,3570.0,2.80109]
[1732874736994,0.26074072,3570.1,3570.0,2.90898914]
[1732874737638,0.26074072,3570.1,3570.0,0.10789914]
[1732874738196,0.67792587,3570.1,3569.8,2.80126]
[1732874738433,0.26074072,3570.0,3569.8,3.441607]
[1732874738731,0.41718515,3570.3,3569.9,2.80119]
[1732874738903,0.26102124,3570.2,3570.0,2.80108]
[1732874739246,0.26111783,3570.1,3570.0,2.90897914]
[1732874739833,0.26111783,3570.1,3569.8,3.35058614]
[1732874739994,0.41778853,3570.3,3570.0,2.90897914]
[1732874740196,0.67891746,3570.2,3570.0,2.90897914]
[1732874740416,0.26112893,3570.1,3570.0,3.67617914]
[1732874740792,0.26123847,3570.1,3570.0,3.56828]
[1732874741729,0.26123847,3570.1,3570.0,4.19613191]
[1732874742147,30.0,3570.6,3570.5,3.62872]
[1732874742324,30.67936656,3570.6,3570.5,3.62872]
[1732874742528,30.67936656,3570.6,3570.5,3.73288474]
[1732874742744,30.67936656,3570.6,3570.5,3.62872]
[1732874743335,30.67936656,3570.6,3570.5,3.73308635]
[1732874744808,33.48000656,3570.6,3570.5,0.10436635]
[1732874745011,33.48000656,3570.6,3569.3,0.55919272]
[1732874745012,34.24910656,3570.6,3569.8,0.7728]
[1732874745236,0.67936656,3570.5,3570.0,2.80111]
[1732874745446,0.67936656,3570.4,3570.0,2.80111]
[1732874745620,0.67936656,3570.3,3570.0,2.80111]
[1732874745808,0.26129483,3570.2,3569.8,3.57399]
[1732874746010,0.26129483,3570.1,3569.9,2.80119]
[1732874746237,0.26129483,3570.0,3569.9,2.80119]
[1732874747747,0.26129483,3570.0,3569.8,3.57399]
[1732874747917,0.26129483,3569.9,3569.8,0.7728]
[1732874752042,0.26129483,3569.9,3569.8,3.57407]
[1732874755091,0.26129483,3569.9,3569.8,0.7728]
[1732874756401,0.26129483,3569.9,3569.5,2.80144]
[1732874756402,0.26129483,3569.9,3569.7,2.80134]
[1732874756612,0.41833501,3570.1,3569.7,2.80134]
[1732874756774,0.26145679,3570.0,3569.8,0.10438286]
[1732874756960,0.26145679,3569.9,3569.8,0.10438286]
[1732874757185,0.26145679,3569.9,3569.7,2.80134]
[1732874757492,0.41833661,3570.1,3569.7,2.80134]
[1732874757701,0.26146145,3570.0,3569.8,0.1042772]
[1732874757879,0.26146145,3569.9,3569.8,2.80127]
[1732874758184,0.26146145,3569.9,3569.8,3.60387]
[1732874758552,0.26146145,3569.9,3569.8,3.70825719]
[1732874759449,0.26146145,3569.9,3569.8,4.35922491]
[1732874759778,0.8328,3570.8,3570.2,2.80094]
[1732874759779,0.41839546,3570.4,3570.2,2.80094]
[1732874759980,0.26149587,3570.3,3570.2,2.80094]
[1732874760328,0.41839779,3570.5,3570.3,0.10432303]
[1732874760505,32.80065,3570.6,3570.2,0.10437252]
[1732874760691,0.2614965,3570.4,3570.2,0.10437252]
[1732874760869,0.2614965,3570.3,3570.2,0.10437252]
[1732874761054,0.2614965,3570.3,3570.0,2.80104]
[1732874761253,0.41838393,3570.4,3569.8,3.60385]
[1732874761254,0.2614965,3570.2,3570.1,0.10440368]
[1732874761481,0.2614965,3570.2,3570.1,2.80104]
[1732874761794,0.2614965,3570.2,3570.1,2.90548034]
[1732874762761,0.26149171,3570.2,3570.1,2.90548034]
[1732874766202,0.26147235,3570.2,3570.1,2.90548034]
[1732874766383,0.26147235,3570.2,3570.1,3.55640037]
[1732874767426,0.41835576,3570.5,3570.2,2.80094]
[1732874767593,0.26138278,3570.4,3570.1,2.90548034]
[1732874767925,0.41835576,3570.5,3570.1,0.10444034]
[1732874767926,0.26138278,3570.3,3570.1,0.10444034]
[1732874768126,0.26138278,3570.2,3570.1,0.10444034]
[1732874768414,0.26138278,3570.2,3569.7,2.80128]
[1732874768575,0.26138278,3570.1,3569.7,2.80128]
[1732874768921,0.26138278,3570.0,3569.8,0.10451737]
[1732874769082,3.63394,3570.3,3569.8,2.80127]
[1732874769279,3.48060003,3570.2,3569.6,3.0]
[1732874769633,0.26140839,3570.1,3569.7,2.90591687]
[1732874769922,0.26140839,3570.0,3569.7,2.90591687]
[1732874770100,0.26140839,3569.9,3569.7,2.90591687]
[1732874770415,0.41823643,3570.1,3569.8,2.80126]
[1732874770618,0.26139626,3570.0,3569.8,2.80126]
[1732874770775,0.26139626,3569.9,3569.8,2.80126]
[1732874772222,0.26139626,3569.9,3569.8,3.4655852]
[1732874772398,30.0,3570.6,3570.2,2.80093]
[1732874772714,0.6797382,3570.5,3570.2,2.80093]
[1732874772919,0.6797382,3570.4,3570.2,2.80093]
[1732874773216,0.26143434,3570.3,3570.2,2.80093]
[1732874773732,0.26148183,3570.3,3570.2,2.80093]
[1732874774094,0.26148183,3570.3,3570.2,2.90526772]
[1732874775112,0.26148183,3570.3,3570.2,2.80093]
[1732874775363,0.26148183,3570.3,3570.2,2.90526772]
[1732874776698,0.26152235,3570.3,3570.2,2.90526772]
[1732874777012,0.26152235,3570.3,3570.2,0.10433772]
[1732874777319,0.26152235,3570.3,3570.1,2.80103]
[1732874777519,0.26152235,3570.2,3570.1,2.80103]
[1732874777891,30.0,3570.6,3570.5,2.80072]
[1732874778089,30.6799122,3570.6,3570.5,2.80072]
[1732874780115,30.67984738,3570.6,3570.5,2.80072]
[1732874780246,30.26147976,3570.6,3570.5,2.80072]
[1732874780722,30.26147976,3570.6,3570.5,3.719534]
[1732874780930,30.0,3570.6,3570.5,4.513234]
[1732874782710,30.0,3570.6,3570.5,7.513234]
[1732874785817,0.8211,3571.6,3570.6,3.0]
[1732874786049,0.8211,3571.6,3571.5,2.79994]
[1732874786224,1.08199007,3571.6,3571.5,2.79994]
[1732874786845,0.767,3571.5,3571.1,2.80019]
[1732874787074,0.26089007,3571.4,3571.3,2.80008]
[1732874787302,0.26085988,3571.4,3571.3,2.80008]
[1732874789140,0.767,3571.5,3571.3,2.90363061]
[1732874789356,0.26077637,3571.4,3571.3,2.90363061]
[1732874790854,0.767,3571.5,3571.3,2.90363061]
[1732874791232,0.26073955,3571.4,3571.3,2.90363061]
[1732874792562,0.26073955,3571.4,3571.3,0.10355061]
[1732874792768,0.26073955,3571.4,3571.3,2.8001]
[1732874793087,0.26073955,3571.4,3571.3,2.90359059]
[1732874793782,0.26073955,3571.4,3571.3,0.10349059]
[1732874793937,0.26073955,3571.4,3571.3,2.8001]
[1732874794387,0.26060684,3571.4,3571.3,2.8001]
[1732874794951,0.26060684,3571.4,3571.3,3.6327]
[1732874795169,30.0,3571.5,3571.3,3.73619059]
[1732874795345,30.0,3571.5,3571.4,2.80002]
[1732874795677,30.26060202,3571.5,3571.4,2.90346113]
[1732874795894,30.26060202,3571.5,3571.4,3.55707724]
[1732874796180,30.0,3571.5,3571.4,3.55707724]
[1732874805767,30.0,3571.5,3571.4,4.31617724]
[1732874811695,30.0,3571.5,3571.4,3.55707724]
[1732874812002,30.0,3571.5,3571.4,2.90346113]
[1732874812758,30.8071,3571.5,3571.4,0.10344113]
[1732874812999,30.8071,3571.5,3571.4,2.80002]
[1732874813193,31.06745765,3571.5,3571.1,2.80023]
[1732874813348,30.8071,3571.5,3571.1,2.80023]
[1732874813593,0.26032657,3571.4,3571.2,0.09915477]
[1732874813866,30.8071,3571.5,3571.1,2.80023]
[1732874814185,0.26032341,3571.4,3571.2,2.89932477]
[1732874814375,30.8071,3571.5,3571.2,2.89932477]
[1732874814558,0.26032938,3571.4,3571.2,2.89932477]
[1732874814757,30.8071,3571.5,3571.2,2.89932477]
[1732874814983,0.26033569,3571.4,3571.2,2.89932477]
[1732874815272,30.8071,3571.5,3571.2,2.89932477]
[1732874815368,0.26033677,3571.4,3571.2,2.89932477]
[1732874815696,30.8071,3571.5,3571.2,2.89932477]
[1732874815868,0.26033928,3571.4,3571.2,0.09915477]
[1732874816195,30.8071,3571.5,3571.1,2.80021]
[1732874816501,0.26033746,3571.4,3571.2,0.09915477]
[1732874816703,30.8071,3571.5,3571.2,0.09915477]
[1732874816910,0.26037413,3571.4,3571.0,2.80033]
[1732874817107,33.60704,3571.5,3571.3,0.09910532]
[1732874817313,0.26034511,3571.4,3570.6,2.80062]
[1732874817619,1.08854511,3571.3,3570.7,2.90000212]
[1732874817760,0.26034511,3571.2,3570.7,2.90000212]
[1732874817959,3.62831,3571.3,3570.7,2.90000212]
[1732874817960,0.26034511,3571.1,3570.7,2.80052]
[1732874818212,3.62831,3571.3,3570.8,0.09943266]
[1732874818550,3.56782,3571.1,3570.8,0.09943266]
[1732874818679,1.02784151,3571.0,3570.5,2.80071]
[1732874818913,0.26034151,3570.9,3570.5,2.80071]
[1732874819077,0.7675,3571.0,3570.6,0.09955107]
[1732874819262,0.26026764,3570.9,3570.6,0.09955107]
[1732874819593,3.56785,3571.0,3570.4,2.80078]
[1732874819594,3.56785,3571.0,3570.7,0.09950161]
[1732874819754,0.26027606,3570.9,3570.4,2.80078]
[1732874819959,3.56785,3571.0,3570.5,0.09960053]
[1732874820161,0.26017259,3570.9,3570.5,0.09960053]
[1732874820377,3.56785,3571.0,3570.5,0.09960053]
[1732874820614,3.06064055,3570.9,3570.5,0.09960053]
[1732874820821,0.26020055,3570.8,3570.5,0.09960053]
[1732874821189,2.80044,3570.9,3570.3,2.80085]
[1732874821334,0.26012153,3570.8,3570.4,0.09965]
[1732874821520,0.2601361,3570.8,3570.4,2.9004]
[1732874821717,3.0605461,3570.9,3570.4,2.80075]
[1732874821921,0.2601361,3570.8,3570.4,2.80075]
[1732874822254,0.26009755,3570.8,3570.4,2.80075]
[1732874822606,3.06059755,3570.8,3570.2,2.80095]
[1732874822806,0.8082,3570.7,3570.5,0.09960053]
[1732874823048,0.8082,3570.7,3570.2,2.80095]
[1732874823245,0.8082,3570.7,3570.6,0.09955107]
[1732874823450,0.8082,3570.7,3569.8,2.80126]
[1732874823649,2.80138,3569.7,3569.2,0.7766]
[1732874823816,2.80156,3569.5,3568.9,0.7766]
[1732874824008,0.8082,3569.6,3569.0,2.80185]
[1732874824247,0.8082,3569.6,3569.2,2.80172]
[1732874824462,0.8082,3569.6,3569.1,3.159645]
[1732874824641,0.8082,3569.6,3569.2,2.80174]
[1732874825850,0.8082,3569.6,3569.1,3.159645]
[1732874826858,0.8082,3569.6,3569.2,2.80173]
[1732874828556,0.8082,3569.6,3569.3,2.80166]
[1732874829341,0.8082,3569.6,3569.2,2.80174]
[1732874831161,0.8082,3569.6,3569.1,0.357845]
[1732874831363,0.8082,3569.6,3569.1,2.80176]
[1732874832373,0.8082,3569.6,3569.0,2.80187]
[1732874832675,2.80155,3569.5,3568.8,2.80201]
[1732874832877,2.80159,3569.4,3568.8,2.80201]
[1732874833541,0.8137,3569.3,3568.8,2.80201]
[1732874834238,0.8137,3569.3,3568.9,0.09807715]
[1732874834841,0.8137,3569.3,3568.9,2.90005715]
[1732874836232,0.8137,3569.3,3568.9,0.09807715]
[1732874836428,3.6154,3569.3,3568.9,0.09807715]
[1732874836685,3.6154,3569.3,3569.1,2.80181]
[1732874836686,0.8137,3569.3,3569.1,2.80181]
[1732874836838,0.7975,3569.7,3569.0,0.09843313]
[1732874837031,0.7975,3569.7,3569.6,2.80143]
[1732874837240,2.8009,3570.3,3569.2,0.0983341]
[1732874837241,0.7975,3570.2,3569.3,0.7987]
[1732874837428,0.7975,3570.2,3569.8,2.8012]
[1732874837726,0.7975,3570.2,3569.6,0.09813607]
[1732874837727,3.57477,3570.9,3570.3,2.80085]
[1732874837936,3.57477,3570.9,3570.1,2.80104]
[1732874837937,3.438035,3570.8,3570.1,2.80104]
[1732874838146,3.438035,3570.8,3570.2,2.89866907]
[1732874838465,0.637505,3570.8,3570.2,0.09772907]
[1732874838654,0.7743,3570.9,3570.2,0.09772907]
[1732874838858,2.80057,3570.7,3570.2,0.09772907]
[1732874839785,0.7743,3570.9,3570.2,2.89867907]
[1732874839786,2.8005,3570.8,3570.2,2.89867907]
[1732874839942,2.8005,3570.8,3570.2,2.80095]
[1732874840146,2.80057,3570.7,3570.1,2.80103]
[1732874840355,2.80057,3570.7,3570.2,0.09755257]
[1732874841089,3.57476,3570.9,3570.2,2.89850257]
[1732874841254,0.25926653,3570.8,3570.2,2.89850257]
[1732874841588,3.05975653,3570.8,3570.2,2.80095]
[1732874841752,2.80049,3570.8,3570.2,2.80095]
[1732874842707,0.25941944,3570.7,3570.2,2.80095]
[1732874843181,0.25941944,3570.7,3570.3,0.0975031]
[1732874843389,0.25941944,3570.7,3570.2,2.80095]
[1732874843541,0.25941944,3570.7,3570.3,0.09752142]
[1732874843738,3.05999944,3570.7,3570.2,2.80095]
[1732874843941,2.80058,3570.7,3570.3,0.0975031]
[1732874844185,0.25959979,3570.6,3570.2,2.80095]
[1732874844369,0.25959979,3570.6,3570.3,0.0975031]
[1732874844543,0.25959979,3570.6,3570.2,2.80095]
[1732874844751,2.80058,3570.7,3569.9,3.60352]
[1732874844752,2.80058,3570.7,3570.3,0.0975031]
[1732874844950,0.2595985,3570.6,3570.0,2.80106]
[1732874845287,0.2595985,3570.6,3570.1,0.09760206]
[1732874845455,3.0602585,3570.6,3570.1,2.89862206]
[1732874845783,0.2595985,3570.5,3570.2,0.09742138]
[1732874846081,0.2595985,3570.5,3570.0,2.8011]
[1732874846243,0.2595985,3570.5,3570.3,0.0973719]
[1732874846445,0.2595985,3570.5,3570.1,2.80103]
[1732874846795,0.2595985,3570.5,3570.0,2.80107]
[1732874846994,0.2595985,3570.5,3570.1,0.09745325]
[1732874847188,0.2595985,3570.4,3570.1,0.09745325]
[1732874847389,0.2595985,3570.5,3570.1,0.09745325]
[1732874847592,0.2595985,3570.4,3570.1,2.89848325]
[1732874847895,0.2595985,3570.5,3570.1,2.89848325]
[1732874848423,0.26007681,3570.4,3570.1,2.89848325]
[1732874848567,0.26007681,3570.5,3570.1,2.89848325]
[1732874848903,0.26007681,3570.4,3570.1,2.89848325]
[1732874849101,3.06073681,3570.6,3570.1,2.89848325]
[1732874849253,0.26020598,3570.5,3570.1,2.89848325]
[1732874849689,0.26020598,3570.4,3570.1,2.89848325]
[1732874849874,2.80066,3570.6,3570.1,2.89848325]
[1732874850086,0.26020473,3570.5,3570.1,2.89848325]
[1732874850283,0.26020473,3570.4,3570.1,2.89848325]
[1732874850591,2.80066,3570.6,3570.1,2.89848325]
[1732874850803,0.26021673,3570.5,3570.1,2.89848325]
[1732874851000,0.26021673,3570.4,3570.1,2.89848325]
[1732874851298,2.80066,3570.6,3570.1,2.89848325]
[1732874851507,0.26025523,3570.5,3570.1,2.89848325]
[1732874851710,0.26025523,3570.4,3570.1,2.89848325]
[1732874852006,2.80066,3570.6,3570.1,2.89848325]
[1732874852297,0.26022456,3570.5,3570.1,2.89848325]
[1732874852506,0.26022456,3570.4,3570.1,2.89848325]
[1732874852795,2.80066,3570.6,3570.1,2.89848325]
[1732874853100,0.26024984,3570.5,3570.1,2.89848325]
[1732874853402,0.26024984,3570.4,3570.1,2.89848325]
[1732874853598,0.26024984,3570.3,3570.1,2.89848325]
[1732874853774,2.80066,3570.6,3570.1,2.89848325]
[1732874853975,0.26033534,3570.5,3570.1,2.89848325]
[1732874854287,0.26033534,3570.4,3570.1,2.89848325]
[1732874854498,2.80066,3570.6,3570.1,2.89848325]
[1732874854673,0.26030388,3570.5,3570.1,2.89848325]
[1732874854877,0.26030388,3570.4,3570.1,2.89848325]
[1732874855102,2.80066,3570.6,3570.1,2.89848325]
[1732874855402,0.26030686,3570.5,3570.1,2.89848325]
[1732874855604,2.80066,3570.6,3570.1,2.89848325]
[1732874856101,2.80051,3570.8,3570.2,0.7501]
[1732874856255,2.80058,3570.7,3570.2,0.7501]
[1732874856458,2.80051,3570.8,3570.3,0.09710192]
[1732874856698,2.80058,3570.7,3570.3,0.09710192]
[1732874856912,2.80058,3570.7,3570.2,3.55106]
[1732874857073,0.26032815,3570.6,3570.4,0.09705244]
[1732874857266,3.21710504,3570.7,3570.2,3.55106]
[1732874857267,0.26032815,3570.5,3570.3,0.09710192]
[1732874857456,3.21710504,3570.7,3570.2,3.55106]
[1732874857694,0.26033009,3570.6,3570.2,3.55106]
[1732874857908,0.26033009,3570.5,3570.2,3.55106]
[1732874858069,3.21710504,3570.7,3570.2,3.55106]
[1732874858267,0.26033803,3570.6,3570.2,3.55106]
[1732874858600,0.26033803,3570.5,3570.0,2.80105]
[1732874858808,0.26033803,3570.4,3570.0,2.80105]
[1732874859010,2.80065,3570.6,3570.0,2.80105]
[1732874859168,0.26036195,3570.5,3570.0,2.80105]
[1732874859511,0.26036195,3570.4,3570.0,2.80105]
[1732874859692,2.80065,3570.6,3570.0,2.80105]
[1732874859889,0.26038745,3570.5,3570.0,2.80105]
[1732874860097,0.26038745,3570.4,3569.9,3.62226]
[1732874860267,2.80065,3570.6,3570.1,2.801]
[1732874860467,0.26041916,3570.5,3570.1,2.801]
[1732874860667,0.26041916,3570.4,3570.1,2.801]
[1732874860867,0.41652504,3570.7,3570.1,5.60198]
[1732874861114,0.26041732,3570.6,3570.1,5.60198]
[1732874861305,0.26041732,3570.5,3570.1,2.80098]
[1732874861511,2.80058,3570.7,3570.1,2.80098]
[1732874861814,0.26043873,3570.6,3570.1,2.80098]
[1732874861977,0.26043873,3570.5,3570.1,2.80098]
[1732874862319,2.80058,3570.7,3570.1,2.80098]
[1732874862517,3.438025,3570.8,3570.1,2.80098]
[1732874862816,0.26047116,3570.7,3570.5,0.7598]
[1732874862969,2.8001,3571.3,3571.1,0.7598]
[1732874862970,0.41675386,3571.3,3571.1,0.7598]
[1732874863172,0.41675386,3571.4,3571.2,2.80017]
[1732874863418,0.26050294,3571.3,3571.1,3.56002]
[1732874863579,0.26050294,3571.2,3571.1,0.7598]
[1732874863981,0.26050294,3571.2,3571.0,2.80033]
[1732874864202,0.41678453,3571.4,3571.1,0.09663932]
[1732874864399,0.2605183,3571.3,3571.1,0.09663932]
[1732874864572,0.2605183,3571.2,3571.1,0.09663932]
[1732874866297,0.26064998,3571.2,3571.0,5.6006]
[1732874866505,0.41703997,3571.4,3571.1,0.09663932]
[1732874866692,0.26064984,3571.3,3571.1,0.09663932]
[1732874867014,0.26064984,3571.2,3571.1,0.09663932]
[1732874867183,0.26064984,3571.2,3571.0,2.80027]
[1732874867402,0.26064984,3571.1,3571.0,2.80027]
[1732874868882,0.2606492,3571.3,3571.2,2.80016]
[1732874869947,0.2606492,3571.3,3571.0,2.80027]
[1732874870096,0.2606492,3571.2,3571.1,2.8002]
[1732874870437,0.2606492,3571.2,3570.9,2.80035]
[1732874870736,0.2606492,3571.1,3570.9,2.80035]
[1732874870943,0.2606492,3571.3,3571.0,2.80028]
[1732874871238,0.2606492,3571.2,3571.0,2.80028]
[1732874871440,0.41697309,3571.4,3571.0,2.80028]
[1732874871591,0.26056205,3571.3,3571.0,2.80028]
[1732874871789,0.26056205,3571.2,3571.0,2.80028]
[1732874872031,0.41697309,3571.4,3571.0,2.80028]
[1732874872329,0.26054258,3571.3,3571.0,2.80028]
[1732874872507,0.26054258,3571.2,3570.9,2.80036]
[1732874872692,0.26054258,3571.4,3570.9,2.80036]
[1732874872892,0.26054258,3571.3,3570.9,2.80036]
[1732874873136,0.26054258,3571.2,3570.9,2.80036]
[1732874873453,0.26054258,3571.4,3571.0,0.09672693]
[1732874873799,0.26054258,3571.3,3571.0,2.80033]
[1732874873994,0.26054258,3571.2,3571.1,0.09665764]
[1732874874201,0.26054258,3571.4,3571.0,2.80033]
[1732874874422,0.26054258,3571.3,3571.1,0.09665764]
[1732874874617,0.26054258,3571.2,3571.0,2.80033]
[1732874874833,0.26054258,3571.4,3571.1,0.09665764]
[1732874875132,0.26054258,3571.3,3571.0,2.80033]
[1732874875428,0.26054258,3571.2,3571.1,0.09665764]
[1732874875737,0.26054258,3571.4,3571.0,2.80033]
[1732874875947,0.26054258,3571.3,3571.0,2.80033]
[1732874876100,0.26054258,3571.2,3571.1,0.09665764]
[1732874876436,0.26054258,3571.4,3571.0,2.80033]
[1732874876632,0.26054258,3571.3,3571.1,0.09665764]